bitfinex/quotes_SOLUSD_20241127
["timestamp","ask_amount","ask_price","bid_price","bid_amount"]
[1732718681714,8.06399828,239.27,239.22,5.0]
[1732718681935,8.06399828,239.27,239.2,9.1805]
[1732718682236,8.06399828,239.27,239.2,17.24449828]
[1732718682442,8.06399828,239.27,239.2,8.06399828]
[1732718682631,8.06399828,239.27,239.18,13.06399828]
[1732718683038,8.06399828,239.25,239.18,5.0]
[1732718684331,2.9255,239.28,239.18,5.0]
[1732718684332,8.06399828,239.24,239.18,5.0]
[1732718685027,8.06399828,239.22,239.14,5.0]
[1732718685225,8.06399828,239.2,239.11,5.0]
[1732718685528,2.9259,239.24,239.11,5.0]
[1732718685741,8.06399828,239.18,239.11,5.0]
[1732718686053,8.06399828,239.2,239.11,5.0]
[1732718686224,8.06399828,239.2,239.11,13.06399828]
[1732718686725,8.06399828,239.2,239.12,5.0]
[1732718687152,8.06399828,239.2,239.13,8.06399828]
[1732718688045,10.7764,239.25,239.13,8.06399828]
[1732718688046,13.7023,239.25,239.15,13.06399828]
[1732718688252,8.06399828,239.24,239.15,8.06399828]
[1732718688421,8.06399828,239.3,239.15,5.0]
[1732718688622,8.06399828,239.3,239.21,8.06399828]
[1732718688844,10.98889828,239.32,239.23,8.06399828]
[1732718689748,8.06399828,239.3,239.19,5.0]
[1732718689927,10.7764,239.33,239.25,8.06399828]
[1732718690626,10.7764,239.33,239.23,5.0]
[1732718690828,10.7764,239.33,239.24,8.06399828]
[1732718691135,2.9248,239.33,239.26,8.06399828]
[1732718691334,2.9248,239.33,239.21,21.6338]
[1732718691641,8.06399828,239.32,239.24,13.06399828]
[1732718691853,2.9248,239.33,239.24,8.06399828]
[1732718692244,8.06399828,239.32,239.21,5.0]
[1732718692544,8.06399828,239.32,239.22,8.06399828]
[1732718693146,5.0,239.3,239.18,13.06399828]
[1732718693350,8.06399828,239.27,239.18,13.06399828]
[1732718693733,21.014,239.31,239.22,8.06399828]
[1732718693928,29.07799828,239.31,239.22,8.06399828]
[1732718694129,8.06399828,239.29,239.18,5.0]
[1732718694330,2.9254,239.28,239.19,8.06399828]
[1732718694547,2.9254,239.28,239.18,5.0]
[1732718694742,2.9254,239.28,239.19,8.06399828]
[1732718694957,8.06399828,239.27,239.19,8.06399828]
[1732718695257,8.06399828,239.27,239.16,5.0]
[1732718695440,8.06399828,239.27,239.19,8.06399828]
[1732718695637,8.06399828,239.27,239.16,5.0]
[1732718695844,10.98949828,239.27,239.18,8.06399828]
[1732718696342,2.9255,239.27,239.16,5.0]
[1732718696658,2.9255,239.27,239.19,8.06399828]
[1732718696841,2.9254,239.28,239.19,8.06399828]
[1732718697358,2.9254,239.28,239.21,8.06399828]
[1732718697937,10.239,239.28,239.15,5.0]
[1732718698150,10.239,239.28,239.2,8.06399828]
[1732718698335,2.9254,239.28,239.2,8.06399828]
[1732718698532,1.34042365,239.28,239.2,8.06399828]
[1732718698734,8.06399828,239.27,239.13,5.0]
[1732718699041,8.06399828,239.25,239.17,8.06399828]
[1732718699241,8.06399828,239.25,239.11,5.0]
[1732718699457,8.06399828,239.25,239.15,8.06399828]
[1732718700038,15.2386,239.29,239.16,8.06399828]
[1732718700234,15.2386,239.29,239.18,8.06399828]
[1732718700235,8.06399828,239.27,239.18,8.06399828]
[1732718700443,5.0,239.26,239.18,8.06399828]
[1732718701162,2.9258,239.25,239.16,8.06399828]
[1732718701356,2.9258,239.25,239.18,8.06399828]
[1732718701530,8.06399828,239.22,239.09,5.0]
[1732718701731,8.06399828,239.2,239.09,5.0]
[1732718701959,8.06399828,239.2,239.11,8.06399828]
[1732718702843,8.06399828,239.22,239.13,8.06399828]
[1732718703153,12.1097,239.24,239.17,8.06399828]
[1732718703154,2.9261,239.23,239.17,8.06399828]
[1732718703540,8.06399828,239.27,239.17,8.06399828]
[1732718703835,2.9254,239.28,239.19,8.06399828]
[1732718704052,10.7764,239.31,239.21,13.06399828]
[1732718704339,8.06399828,239.29,239.18,5.0]
[1732718704535,8.06399828,239.29,239.2,8.06399828]
[1732718704745,10.1146,239.32,239.2,5.0]
[1732718704938,10.1146,239.32,239.24,8.06399828]
[1732718705345,8.06399828,239.31,239.18,5.0]
[1732718705536,8.06399828,239.31,239.16,32.25599312]
[1732718705849,10.1146,239.32,239.14,5.0]
[1732718705850,13.06399828,239.29,239.21,8.06399828]
[1732718706052,15.702,239.26,239.17,8.06399828]
[1732718706365,5.0,239.25,239.17,8.06399828]
[1732718707256,2.9258,239.25,239.19,8.06399828]
[1732718707479,5.0,239.31,239.17,5.0]
[1732718707648,10.2376,239.31,239.23,8.06399828]
[1732718707850,8.06399828,239.3,239.21,8.06399828]
[1732718709358,15.2376,239.31,239.21,8.06399828]
[1732718709359,2.9253,239.29,239.21,8.06399828]
[1732718709566,2.9251,239.31,239.25,8.06399828]
[1732718710761,2.9251,239.31,239.23,8.06399828]
[1732718711066,2.9251,239.31,239.27,8.06399828]
[1732718711275,2.9244,239.36,239.29,8.06399828]
[1732718711564,2.9244,239.36,239.28,5.0]
[1732718711763,10.98839828,239.36,239.27,8.06399828]
[1732718711955,10.98839828,239.36,239.28,5.0]
[1732718712343,10.98839828,239.36,239.27,8.06399828]
[1732718712539,10.98839828,239.36,239.28,5.0]
[1732718713164,10.48839828,239.36,239.28,5.0]
[1732718713478,2.9242,239.38,239.31,5.0]
[1732718713654,17.38,239.39,239.31,5.0]
[1732718713655,25.44399828,239.39,239.31,13.06399828]
[1732718713848,10.98809828,239.39,239.31,13.06399828]
[1732718714167,24.4337,239.44,239.37,8.06399828]
[1732718714372,2.9237,239.43,239.34,5.0]
[1732718714661,2.9237,239.43,239.37,8.06399828]
[1732718714869,8.06399828,239.42,239.32,23.1198]
[1732718715056,8.06399828,239.39,239.31,8.06399828]
[1732718715258,8.06399828,239.35,239.26,19.1691]
[1732718715564,8.06399828,239.33,239.25,5.0]
[1732718715768,8.06399828,239.33,239.24,8.06399828]
[1732718715969,8.06399828,239.33,239.21,26.1983]
[1732718715970,2.9247,239.34,239.26,8.06399828]
[1732718716265,8.06399828,239.33,239.24,13.06399828]
[1732718717256,8.06399828,239.33,239.24,8.06399828]
[1732718717460,2.9249,239.32,239.24,13.06399828]
[1732718717661,2.9248,239.34,239.27,5.0]
[1732718717970,8.06399828,239.38,239.3,13.06399828]
[1732718718352,8.06399828,239.38,239.3,8.06399828]
[1732718718554,8.06399828,239.35,239.28,5.0]
[1732718718754,8.06399828,239.35,239.28,13.06399828]
[1732718719448,8.06399828,239.35,239.28,5.0]
[1732718719757,10.98849828,239.35,239.28,5.0]
[1732718719960,8.06399828,239.31,239.27,5.0]
[1732718720155,24.7286,239.4,239.29,5.0]
[1732718720366,8.06399828,239.35,239.29,5.0]
[1732718721074,2.9236,239.43,239.32,5.0]
[1732718721251,8.06399828,239.39,239.34,5.0]
[1732718721566,2.9236,239.43,239.33,5.0]
[1732718721772,8.06399828,239.39,239.33,5.0]
[1732718721960,8.06399828,239.39,239.31,13.06399828]
[1732718722164,8.06399828,239.39,239.31,5.0]
[1732718722552,8.06399828,239.39,239.35,5.0]
[1732718722869,8.06399828,239.39,239.31,5.0]
[1732718723066,8.06399828,239.35,239.29,5.0]
[1732718723569,8.06399828,239.33,239.27,5.0]
[1732718724361,12.58820315,239.29,239.23,5.0]
[1732718724562,12.58820315,239.29,239.24,5.0]
[1732718724752,12.58820315,239.29,239.22,5.0]
[1732718725068,15.51350315,239.29,239.22,5.0]
[1732718725673,12.58820315,239.25,239.21,19.1691]
[1732718725875,12.58820315,239.25,239.15,7.6954]
[1732718725876,12.58820315,239.23,239.17,5.0]
[1732718726050,2.9253,239.29,239.13,5.0]
[1732718726051,12.58820315,239.19,239.13,5.0]
[1732718726254,12.58820315,239.15,239.13,5.0]
[1732718726452,12.58820315,239.15,239.09,24.3532]
[1732718726674,12.58820315,239.1,239.06,5.0]
[1732718726873,12.58820315,239.08,239.03,18.1499]
[1732718727376,12.58820315,239.08,239.04,5.0]
[1732718728182,12.58820315,239.1,239.07,5.0]
[1732718728470,12.58820315,239.1,239.06,5.0]
[1732718728680,12.58820315,239.08,239.03,5.0]
[1732718728860,12.58820315,239.08,239.04,5.0]
[1732718729063,12.58820315,239.08,239.01,5.0]
[1732718729375,12.58820315,239.08,239.04,5.0]
[1732718730278,12.58820315,239.08,239.01,5.0]
[1732718730576,12.58820315,239.06,239.01,4.97051]
[1732718730960,12.58820315,239.08,239.01,4.97051]
[1732718731154,12.58820315,239.08,239.03,4.97051]
[1732718731355,12.58820315,239.08,239.01,17.55871315]
[1732718731555,12.58820315,239.08,239.01,4.97051]
[1732718731753,12.58820315,239.08,239.03,4.97051]
[1732718732354,12.58820315,239.06,239.0,4.97051]
[1732718733188,12.58820315,239.04,239.0,4.97051]
[1732718733351,12.58820315,239.02,238.98,4.97051]
[1732718734486,12.58820315,239.02,238.96,4.97051]
[1732718734995,12.58820315,239.04,238.98,4.97051]
[1732718735282,12.58820315,239.02,238.96,4.97051]
[1732718735463,12.58820315,239.0,238.94,4.97051]
[1732718735984,12.58820315,239.02,238.97,4.97051]
[1732718736287,12.58820315,239.0,238.95,4.97051]
[1732718736775,12.58820315,239.0,238.97,4.97051]
[1732718736980,12.58820315,239.06,239.01,4.97051]
[1732718737175,12.58820315,239.06,238.99,4.97051]
[1732718737562,12.58820315,239.01,238.93,4.97051]
[1732718737762,12.58820315,238.99,238.96,4.97051]
[1732718738274,12.58820315,238.99,238.93,4.97051]
[1732718738792,12.58820315,238.97,238.91,12.30241]
[1732718739078,15.51740315,238.97,238.89,4.97051]
[1732718739280,12.58820315,238.95,238.89,4.97051]
[1732718739485,12.58820315,238.93,238.89,4.97051]
[1732718740160,12.58820315,238.91,238.84,4.97051]
[1732718740561,12.58820315,238.87,238.82,4.97051]
[1732718742187,12.58820315,238.83,238.79,4.97051]
[1732718742695,12.58820315,238.85,238.79,4.97051]
[1732718742987,12.55838315,238.85,238.79,4.97051]
[1732718743291,12.58820315,238.87,238.79,4.97051]
[1732718744293,12.58820315,238.85,238.79,4.97051]
[1732718745083,12.58820315,238.83,238.79,4.97051]
[1732718745494,12.58820315,238.85,238.79,4.97051]
[1732718745663,7.3237,238.95,238.82,4.97051]
[1732718745867,12.58820315,238.94,238.87,4.97051]
[1732718746085,12.58820315,238.94,238.89,4.97051]
[1732718746691,12.58820315,238.96,238.88,4.97051]
[1732718746885,12.58820315,238.92,238.86,4.97051]
[1732718747066,12.58820315,238.9,238.86,4.97051]
[1732718747266,12.58820315,238.94,238.89,4.97051]
[1732718747463,12.58820315,238.97,238.9,4.97051]
[1732718747688,12.58820315,238.97,238.89,12.58820315]
[1732718747991,12.58820315,238.95,238.88,4.97051]
[1732718748173,12.58820315,238.95,238.91,4.97051]
[1732718748373,12.58820315,238.95,238.92,4.97051]
[1732718748777,12.58820315,238.97,238.92,4.97051]
[1732718748980,12.58820315,238.95,238.9,4.97051]
[1732718749492,2.9285,239.03,238.86,4.97051]
[1732718749493,12.58820315,238.93,238.86,4.97051]
[1732718749699,12.58820315,238.91,238.86,4.97051]
[1732718749888,12.58820315,238.89,238.86,4.97051]
[1732718750091,12.58820315,238.9,238.86,4.97051]
[1732718750268,70.0,239.0,238.86,4.97051]
[1732718750269,12.58820315,238.92,238.86,4.97051]
[1732718750600,12.58820315,238.92,238.88,4.97051]
[1732718751491,12.58820315,238.9,238.86,4.97051]
[1732718751694,12.58820315,238.9,238.84,4.97051]
[1732718751878,12.58820315,238.88,238.84,4.97051]
[1732718752082,12.58820315,238.88,238.8,4.97051]
[1732718752392,12.58820315,238.86,238.8,4.97051]
[1732718752593,12.58820315,238.9,238.83,4.97051]
[1732718752769,12.58820315,238.9,238.85,4.97051]
[1732718752979,12.58820315,238.9,238.87,4.97051]
[1732718753304,12.58820315,238.92,238.85,17.55871315]
[1732718753496,12.58820315,238.92,238.85,4.97051]
[1732718753676,2.5106,238.98,238.85,4.97051]
[1732718753677,12.58820315,238.9,238.85,4.97051]
[1732718755799,12.58820315,238.9,238.83,4.97051]
[1732718755979,12.58820315,238.88,238.83,4.97051]
[1732718756378,2.5107,238.97,238.81,12.58820315]
[1732718756379,12.58820315,238.9,238.85,4.97051]
[1732718756587,12.58820315,238.92,238.85,4.97051]
[1732718757696,76.276,239.01,238.89,4.97051]
[1732718757697,12.58820315,238.94,238.89,4.97051]
[1732718757902,6.276,239.01,238.89,4.97051]
[1732718757903,12.58820315,238.96,238.89,4.97051]
[1732718758407,12.58820315,238.96,238.94,4.97051]
[1732718758581,12.58820315,238.96,238.9,4.97051]
[1732718758780,12.58820315,238.96,238.92,4.97051]
[1732718759293,12.58820315,238.98,238.92,4.97051]
[1732718760108,2.5101,239.03,238.9,4.97051]
[1732718760109,12.58820315,238.94,238.9,4.97051]
[1732718760413,12.58820315,238.96,238.91,4.97051]
[1732718760584,12.58820315,238.96,238.89,4.97051]
[1732718760789,12.58820315,238.94,238.89,4.97051]
[1732718760983,12.58820315,238.96,238.91,4.97051]
[1732718761804,12.58820315,238.94,238.91,4.97051]
[1732718762099,12.58820315,238.94,238.87,4.97051]
[1732718762310,12.58820315,238.94,238.88,4.97051]
[1732718762690,12.58820315,238.94,238.86,4.97051]
[1732718763198,15.09920315,238.94,238.86,4.97051]
[1732718763705,15.09920315,238.94,238.89,4.97051]
[1732718763706,12.58820315,238.94,238.89,4.97051]
[1732718763882,12.58820315,238.94,238.86,4.97051]
[1732718764498,12.58820315,238.96,238.89,4.97051]
[1732718764716,12.58820315,238.94,238.85,17.55871315]
[1732718764892,12.58820315,238.94,238.85,4.97051]
[1732718765210,12.58820315,238.92,238.85,4.97051]
[1732718765395,12.58820315,238.92,238.87,4.97051]
[1732718767300,12.58820315,238.96,238.91,4.97051]
[1732718768299,17.5115,239.05,238.94,4.97051]
[1732718768300,12.58820315,238.99,238.94,4.97051]
[1732718768628,12.58820315,239.01,238.97,4.97051]
[1732718768914,12.58820315,239.03,238.99,4.97051]
[1732718771720,12.58820315,239.07,239.01,4.97051]
[1732718772014,12.58820315,239.05,238.99,4.97051]
[1732718772692,12.58820315,239.05,238.97,12.51611]
[1732718772892,12.58820315,239.05,239.0,4.97051]
[1732718773094,12.58820315,239.07,239.02,4.97051]
[1732718773313,12.58820315,239.09,239.05,4.97051]
[1732718773495,12.58820315,239.09,239.03,4.97051]
[1732718773915,12.58820315,239.09,239.0,17.55871315]
[1732718774318,12.58820315,239.09,239.04,4.97051]
[1732718775105,12.58820315,239.11,239.04,4.97051]
[1732718775396,12.58820315,239.07,239.04,4.97051]
[1732718775709,12.58820315,239.07,239.0,4.97051]
[1732718776410,12.58820315,239.05,239.0,4.97051]
[1732718776608,12.58820315,239.03,238.97,7.5456]
[1732718777008,12.58820315,239.03,238.98,4.97051]
[1732718779532,12.58820315,239.05,238.98,4.97051]
[1732718780131,12.58820315,239.03,238.94,4.97051]
[1732718780516,12.58820315,239.01,238.98,4.97051]
[1732718780819,12.58820315,239.03,238.98,4.97051]
[1732718781328,12.58820315,239.05,239.0,4.97051]
[1732718781824,12.58820315,239.05,238.98,4.97051]
[1732718782030,12.58820315,239.01,238.94,4.97051]
[1732718782228,12.58820315,238.97,238.94,4.97051]
[1732718782422,12.58820315,238.97,238.92,4.97051]
[1732718782603,12.58820315,238.97,238.91,7.6248]
[1732718783004,12.58820315,238.97,238.93,4.97051]
[1732718783200,12.58820315,238.97,238.91,7.6248]
[1732718783433,12.58820315,238.97,238.93,4.97051]
[1732718783926,12.58820315,238.97,238.91,12.59531]
[1732718784137,12.58820315,238.97,238.93,4.97051]
[1732718784424,12.58820315,238.97,238.91,7.6248]
[1732718784634,12.58820315,238.97,238.92,4.97051]
[1732718785235,12.58820315,239.01,238.96,4.97051]
[1732718785412,12.58820315,239.03,238.96,4.97051]
[1732718786316,12.58820315,239.07,239.0,4.97051]
[1732718786517,12.58820315,239.03,239.0,4.97051]
[1732718786826,2.5096,239.08,239.0,4.97051]
[1732718786827,12.58820315,239.05,239.0,4.97051]
[1732718787137,12.58820315,239.01,238.99,19.1034]
[1732718787515,12.58820315,239.01,238.93,24.07391]
[1732718787716,12.58820315,239.03,238.95,4.97051]
[1732718787929,12.58820315,239.01,238.95,4.97051]
[1732718788640,12.58820315,239.01,238.97,4.97051]
[1732718788826,12.58820315,239.03,239.0,4.97051]
[1732718789246,2.5092,239.12,239.0,4.97051]
[1732718789418,12.58820315,239.04,238.98,4.97051]
[1732718789835,12.58820315,239.02,238.96,4.97051]
[1732718790639,8.7822,239.12,238.94,4.97051]
[1732718790640,12.58820315,238.97,238.94,4.97051]
[1732718790950,12.58820315,238.95,238.93,19.1034]
[1732718791240,12.58820315,238.95,238.9,4.97051]
[1732718791429,12.58820315,238.93,238.9,4.97051]
[1732718791632,12.58820315,238.93,238.88,4.97051]
[1732718792346,12.58820315,238.93,238.82,4.1871]
[1732718792347,12.58820315,238.89,238.82,4.97051]
[1732718792540,12.58820315,238.87,238.82,4.97051]
[1732718793445,12.58820315,238.87,238.81,18.5801]
[1732718793650,12.58820315,238.89,238.84,4.97051]
[1732718793947,6.2774,238.95,238.79,17.55871315]
[1732718793948,12.58820315,238.87,238.79,17.55871315]
[1732718794121,12.58820315,238.83,238.79,4.97051]
[1732718795049,12.58820315,238.81,238.76,4.97051]
[1732718796119,12.58820315,238.81,238.75,0.4914643]
[1732718796316,12.58820315,238.79,238.75,0.4914643]
[1732718796545,12.58820315,238.77,238.75,0.4914643]
[1732718796725,2.5124,238.81,238.76,4.97051]
[1732718796932,15.10060315,238.81,238.76,4.97051]
[1732718797147,12.58820315,238.81,238.76,4.97051]
[1732718797443,15.10060315,238.81,238.75,0.4914643]
[1732718797648,12.58820315,238.79,238.75,0.4914643]
[1732718798150,2.5124,238.81,238.75,0.4914643]
[1732718798151,12.58820315,238.77,238.75,0.4914643]
[1732718798520,12.58820315,238.79,238.75,0.4914643]
[1732718798938,12.58820315,238.81,238.78,4.97051]
[1732718799124,12.58820315,238.81,238.76,4.97051]
[1732718799328,13.5488,238.9,238.78,4.97051]
[1732718799645,12.58820315,238.87,238.83,4.97051]
[1732718799837,12.58820315,238.89,238.84,4.97051]
[1732718800037,12.58820315,238.89,238.86,4.97051]
[1732718800242,12.58820315,238.93,238.88,4.97051]
[1732718800541,12.58820315,238.93,238.87,4.97051]
[1732718800744,12.58820315,238.93,238.9,4.97051]
[1732718800924,12.58820315,238.97,238.94,4.97051]
[1732718801819,12.58820315,239.04,238.93,4.97051]
[1732718802023,2.5096,239.08,238.92,7.5219]
[1732718802024,12.58820315,238.99,238.95,4.97051]
[1732718802230,12.58820315,238.97,238.93,4.97051]
[1732718802436,20.19749703,238.97,238.92,7.5219]
[1732718802641,20.19749703,238.97,238.94,4.97051]
[1732718803428,20.19749703,238.99,238.94,4.97051]
[1732718803624,7.46732037,239.24,238.96,20.19749703]
[1732718803848,20.19749703,239.18,239.12,4.97051]
[1732718804049,20.19749703,239.14,239.08,4.97051]
[1732718804228,20.19749703,239.16,239.1,4.97051]
[1732718804435,20.19749703,239.14,239.08,4.97051]
[1732718804741,20.19749703,239.14,239.07,18.5186]
[1732718804742,20.19749703,239.14,239.1,4.97051]
[1732718805839,20.19749703,239.14,239.07,23.48911]
[1732718806031,20.19749703,239.12,239.07,23.48911]
[1732718806233,20.19749703,239.1,239.07,4.97051]
[1732718806533,20.19749703,239.1,239.05,4.97051]
[1732718806738,20.19749703,239.08,239.05,4.97051]
[1732718807445,20.19749703,239.1,239.07,4.97051]
[1732718807649,20.19749703,239.12,239.07,4.97051]
[1732718808626,20.19749703,239.14,239.1,4.97051]
[1732718809035,22.70629703,239.16,239.1,4.97051]
[1732718809242,20.19749703,239.16,239.13,4.97051]
[1732718809928,2.5087,239.17,239.08,20.19749703]
[1732718809929,20.19749703,239.14,239.08,4.97051]
[1732718810130,20.19749703,239.12,239.08,4.97051]
[1732718810449,20.19749703,239.12,239.06,4.97051]
[1732718811352,20.19749703,239.16,239.12,4.97051]
[1732718811656,20.19749703,239.16,239.1,4.97051]
[1732718812032,20.19749703,239.16,239.13,4.97051]
[1732718814351,20.19749703,239.14,239.09,4.97051]
[1732718814858,20.19749703,239.14,239.12,4.97051]
[1732718815734,20.19749703,239.14,239.09,4.97051]
[1732718815956,20.19749703,239.12,239.09,4.97051]
[1732718816152,20.19749703,239.1,239.04,4.97051]
[1732718816356,2.509,239.14,239.04,4.97051]
[1732718816357,20.19749703,239.06,239.04,4.97051]
[1732718816863,20.19749703,239.06,239.03,4.97051]
[1732718817045,78.7814,239.14,239.01,4.97051]
[1732718817046,20.19749703,239.04,239.01,4.97051]
[1732718817447,22.70749703,239.04,238.99,23.32171]
[1732718817766,20.19749703,239.02,238.99,4.97051]
[1732718818140,20.19749703,239.02,238.97,4.97051]
[1732718818361,20.19749703,239.02,238.98,4.97051]
[1732718818745,20.19749703,239.02,239.01,4.97051]
[1732718818953,20.19749703,239.04,239.01,4.97051]
[1732718820237,22.70749703,239.04,239.01,4.97051]
[1732718820565,22.70739703,239.06,239.01,4.97051]
[1732718820743,20.19749703,239.12,239.07,4.97051]
[1732718820947,20.19749703,239.14,239.08,4.97051]
[1732718821145,7.4026,239.2,239.08,4.97051]
[1732718821146,20.19749703,239.12,239.08,4.97051]
[1732718821371,20.19749703,239.12,239.1,4.97051]
[1732718821540,6.2712,239.19,239.1,4.97051]
[1732718821541,20.19749703,239.14,239.1,4.97051]
[1732718821746,20.19749703,239.16,239.14,4.97051]
[1732718822243,20.19749703,239.18,239.14,4.97051]
[1732718822571,20.19749703,239.18,239.17,4.97051]
[1732718822870,20.19749703,239.18,239.15,4.97051]
[1732718823542,20.19749703,239.18,239.13,4.97051]
[1732718823745,22.70599703,239.18,239.13,4.97051]
[1732718823949,20.19749703,239.16,239.13,4.97051]
[1732718824150,22.70599703,239.18,239.15,4.97051]
[1732718824375,20.19749703,239.18,239.15,4.97051]
[1732718825165,22.70599703,239.18,239.13,4.97051]
[1732718825480,22.70599703,239.18,239.15,4.97051]
[1732718825648,20.19749703,239.2,239.17,4.97051]
[1732718825852,2.5079,239.24,239.22,4.97051]
[1732718825853,20.19749703,239.24,239.22,4.97051]
[1732718826059,22.70499703,239.28,239.24,4.97051]
[1732718826272,20.19749703,239.3,239.28,4.97051]
[1732718826853,6.2665,239.37,239.3,4.97051]
[1732718826854,20.19749703,239.32,239.3,4.97051]
[1732718827071,20.19749703,239.34,239.3,4.97051]
[1732718827253,20.19749703,239.32,239.31,4.97051]
[1732718827453,20.19749703,239.32,239.21,7.2052]
[1732718827454,2.5072,239.31,239.26,4.97051]
[1732718827648,20.19749703,239.29,239.28,4.97051]
[1732718827976,20.19749703,239.29,239.26,4.97051]
[1732718828373,20.19749703,239.29,239.28,4.97051]
[1732718828662,22.70469703,239.31,239.28,4.97051]
[1732718829666,6.2664,239.37,239.28,4.97051]
[1732718829667,20.19749703,239.29,239.28,4.97051]
[1732718830477,20.19749703,239.29,239.21,11.3856]
[1732718830478,20.19749703,239.32,239.31,4.97051]
[1732718830869,20.19749703,239.32,239.28,4.97051]
[1732718831188,20.19749703,239.29,239.26,4.97051]
[1732718831373,20.19749703,239.27,239.26,4.97051]
[1732718832079,20.19749703,239.29,239.24,4.97051]
[1732718832593,20.19749703,239.27,239.24,4.97051]
[1732718832884,20.19749703,239.25,239.22,4.97051]
[1732718833183,20.19749703,239.23,239.2,24.66381]
[1732718833390,20.19749703,239.23,239.22,4.97051]
[1732718833572,20.19749703,239.25,239.24,4.97051]
[1732718834187,20.19749703,239.27,239.26,4.97051]
[1732718834386,20.19749703,239.29,239.28,4.97051]
[1732718835186,20.19749703,239.34,239.31,4.97051]
[1732718835385,20.19749703,239.34,239.33,4.97051]
[1732718838174,20.19749703,239.36,239.35,4.97051]
[1732718838491,20.19749703,239.38,239.35,4.97051]
[1732718838691,20.19749703,239.38,239.37,4.97051]
[1732718839397,20.19749703,239.38,239.35,4.97051]
[1732718839597,20.19749703,239.36,239.35,4.97051]
[1732718839969,20.19749703,239.36,239.31,4.97051]
[1732718840174,20.19749703,239.32,239.27,4.97051]
[1732718840394,20.19749703,239.28,239.27,4.97051]
[1732718840594,40.39499406,239.28,239.21,4.97051]
[1732718840777,20.19749703,239.22,239.19,4.97051]
[1732718840975,20.19749703,239.19,239.18,4.97051]
[1732718841695,20.19749703,239.28,239.18,4.97051]
[1732718841896,20.19749703,239.23,239.2,4.97051]
[1732718842084,22.70549703,239.23,239.22,4.97051]
[1732718843170,20.19749703,239.23,239.22,4.97051]
[1732718845002,20.19749703,239.25,239.22,4.97051]
[1732718845202,20.19749703,239.25,239.24,4.97051]
[1732718845975,22.70539703,239.25,239.2,4.97051]
[1732718846200,20.19749703,239.21,239.2,4.97051]
[1732718846383,20.19749703,239.21,239.18,4.97051]
[1732718846584,20.19749703,239.19,239.18,4.97051]
[1732718848382,20.19749703,239.19,239.16,4.97051]
[1732718848383,22.70589703,239.19,239.16,4.97051]
[1732718848579,20.19749703,239.17,239.14,4.97051]
[1732718848781,20.19749703,239.15,239.14,4.97051]
[1732718849388,22.70629703,239.15,239.12,4.97051]
[1732718849578,20.19749703,239.17,239.16,4.97051]
[1732718850919,20.19749703,239.19,239.18,4.97051]
[1732718851402,22.70599703,239.19,239.17,4.97051]
[1732718851573,20.19749703,239.18,239.17,4.97051]
[1732718851774,20.19749703,239.2,239.19,4.97051]
[1732718852280,20.19749703,239.21,239.19,4.97051]
[1732718852484,2.5079,239.24,239.22,4.97051]
[1732718852485,20.19749703,239.23,239.22,4.97051]
[1732718852694,20.19749703,239.25,239.24,4.97051]
[1732718853487,22.70529703,239.25,239.24,4.97051]
[1732718854893,22.70529703,239.25,239.22,4.97051]
[1732718855216,20.19749703,239.23,239.22,4.97051]
[1732718857113,20.19749703,239.25,239.22,4.97051]
[1732718857313,2.5074,239.29,239.26,4.97051]
[1732718857314,20.19749703,239.27,239.26,4.97051]
[1732718857505,20.19749703,239.27,239.25,4.97051]
[1732718858695,22.70509703,239.27,239.25,4.97051]
[1732718860296,20.19749703,239.27,239.25,4.97051]
[1732718860500,22.70509703,239.27,239.26,4.97051]
[1732718861004,22.70509703,239.27,239.22,4.97051]
[1732718861402,20.19749703,239.23,239.22,4.97051]
[1732718861618,20.19749703,239.23,239.17,4.97051]
[1732718861814,20.19749703,239.18,239.17,4.97051]
[1732718862720,2.5086,239.17,239.15,4.97051]
[1732718863223,20.19749703,239.16,239.15,4.97051]
[1732718863918,20.19749703,239.18,239.15,4.97051]
[1732718864117,20.19749703,239.18,239.17,4.97051]
[1732718864292,20.19749703,239.22,239.21,4.97051]
[1732718864498,20.19749703,239.24,239.23,4.97051]
[1732718864730,2.508,239.23,239.19,4.97051]
[1732718864898,20.19749703,239.2,239.15,4.97051]